bitfinex/quotes_BTCUSD_20230107
["timestamp","ask_amount","ask_price","bid_price","bid_amount"]
[1673067315377,1.77679869,16955.0,16954.0,0.25271072]
[1673067315880,1.28969019,16955.0,16954.0,0.25271072]
[1673067316389,1.28969019,16955.0,16954.0,0.85896972]
[1673067316923,0.69278567,16955.0,16954.0,0.85896972]
[1673067318160,0.69278567,16955.0,16954.0,0.25271072]
[1673067322406,0.69278567,16955.0,16954.0,0.19500756]
[1673067322652,1.17989417,16955.0,16954.0,0.19500756]
[1673067324891,0.69278567,16955.0,16954.0,0.19500756]
[1673067326110,0.69278567,16955.0,16954.0,0.02150756]
[1673067326885,1.17989417,16955.0,16954.0,0.02143683]
[1673067327137,0.69278567,16955.0,16954.0,0.02143683]
[1673067329518,1.17989417,16955.0,16954.0,0.02143683]
[1673067339205,0.69278567,16955.0,16954.0,0.02143683]
[1673067339435,0.69278567,16955.0,16954.0,0.62769583]
[1673067339931,0.69278567,16955.0,16954.0,0.02143683]
[1673067342720,1.22313694,16955.0,16954.0,0.02143683]
[1673067343240,0.69278567,16955.0,16954.0,0.02143683]
[1673067343462,1.22315367,16955.0,16954.0,0.02143683]
[1673067343705,0.69278567,16955.0,16954.0,0.02143683]
[1673067343917,1.22315725,16955.0,16954.0,0.02143683]
[1673067344139,0.69278567,16955.0,16954.0,0.02143683]
[1673067347243,0.69278567,16955.0,16954.0,0.02134049]
[1673067349399,1.17989417,16955.0,16954.0,0.02134049]
[1673067349666,0.69278567,16955.0,16954.0,0.02134049]
[1673067351017,1.28969019,16955.0,16954.0,0.02134049]
[1673067351529,0.69278567,16955.0,16954.0,0.02134049]
[1673067352301,1.28969019,16955.0,16954.0,0.02134049]
[1673067352573,0.69278567,16955.0,16954.0,0.02134049]
[1673067353076,1.28969019,16955.0,16954.0,0.02134049]
[1673067354591,0.69278567,16955.0,16954.0,0.02134049]
[1673067355819,0.68778567,16955.0,16954.0,0.02134049]
[1673067357951,0.68778567,16955.0,16954.0,0.07902695]
[1673067360380,0.68778567,16955.0,16954.0,0.02134049]
[1673067363940,0.68778567,16955.0,16954.0,0.62759949]
[1673067374092,0.68770975,16955.0,16954.0,0.62759949]
[1673067385647,1.28461427,16955.0,16954.0,0.62759949]
[1673067385945,0.68770975,16955.0,16954.0,0.02134049]
[1673067386720,1.17481825,16955.0,16954.0,0.02134049]
[1673067387206,0.68770975,16955.0,16954.0,0.02134049]
[1673067387925,1.17481825,16955.0,16954.0,0.02134049]
[1673067389707,0.68770975,16955.0,16954.0,0.02134049]
[1673067391929,1.77172277,16955.0,16954.0,0.02134049]
[1673067392188,1.28461427,16955.0,16954.0,0.02134049]
[1673067394785,1.28461427,16955.0,16954.0,0.02122189]
[1673067415060,1.78461427,16955.0,16954.0,0.02113773]
[1673067415510,2.27172277,16955.0,16954.0,0.02113773]
[1673067416514,1.67481825,16955.0,16954.0,0.02113773]
[1673067417752,2.27156758,16955.0,16954.0,0.02005857]
[1673067419380,2.27157382,16955.0,16954.0,0.02005857]
[1673067421198,1.67481825,16955.0,16954.0,0.02005857]
[1673067421963,2.27149297,16955.0,16954.0,0.02005857]
[1673067422233,1.67481825,16955.0,16954.0,0.02005857]
[1673067422477,2.27148748,16955.0,16954.0,0.02005857]
[1673067428932,1.77148748,16955.0,16954.0,0.02005857]
[1673067438792,1.77148748,16955.0,16954.0,0.00825632]
[1673067440112,1.77148748,16955.0,16954.0,0.00817597]
[1673067442282,1.77148748,16955.0,16954.0,0.05955322]
[1673067443050,1.77148748,16955.0,16954.0,0.08272366]
[1673067443291,1.77148748,16955.0,16954.0,0.03134641]
[1673067448993,1.77141401,16955.0,16954.0,0.03134641]
[1673067453820,1.17474478,16955.0,16954.0,0.03134641]
[1673067454598,1.77162307,16955.0,16954.0,0.03134641]
[1673067468309,1.17474478,16955.0,16954.0,0.03134641]
[1673067473911,1.17474478,16955.0,16954.0,0.0312366]
[1673067474950,1.77179126,16955.0,16954.0,0.0312366]
[1673067475163,1.17474478,16955.0,16954.0,0.0312366]
[1673067476101,1.77179146,16955.0,16954.0,0.0312366]
[1673067479235,1.17474478,16955.0,16954.0,0.0312366]
[1673067479488,1.77177585,16955.0,16954.0,0.0312366]
[1673067480289,1.17474478,16955.0,16954.0,0.0312366]
[1673067484437,1.77177632,16955.0,16954.0,0.0312366]
[1673067484697,1.17474478,16955.0,16954.0,0.0312366]
[1673067495463,1.71242267,16955.0,16954.0,0.02550602]
[1673067495723,2.06454078,16955.0,16954.0,0.02550602]
[1673067496236,1.76454078,16955.0,16954.0,0.02550602]
[1673067505568,1.76454078,16955.0,16954.0,0.02091073]
[1673067505786,2.06454078,16955.0,16954.0,0.02091073]
[1673067506029,1.76454078,16955.0,16954.0,0.03193669]
[1673067508041,2.06454078,16955.0,16954.0,0.03193669]
[1673067515596,2.06454078,16955.0,16954.0,0.02620177]
[1673067515869,2.56454078,16955.0,16954.0,0.02620177]
[1673067516114,2.77470601,16955.0,16954.0,0.02620177]
[1673067516861,2.47470601,16955.0,16954.0,0.02620177]
[1673067518401,2.77470601,16955.0,16954.0,0.02620177]
[1673067520185,2.47470601,16955.0,16954.0,0.02620177]
[1673067520432,2.77470601,16955.0,16954.0,0.02620177]
[1673067520933,2.47470601,16955.0,16954.0,0.02620177]
[1673067525254,2.36151088,16955.0,16954.0,0.08634585]
[1673067525518,2.36151088,16955.0,16954.0,0.02620177]
[1673067534042,2.36145335,16955.0,16954.0,0.02620177]
[1673067534294,1.76454078,16955.0,16954.0,0.02620177]
[1673067534579,2.3614591,16955.0,16954.0,0.02620177]
[1673067539833,2.3614591,16955.0,16954.0,0.02608746]
[1673067540100,2.8614591,16955.0,16954.0,0.02608746]
[1673067540604,2.89709844,16955.0,16954.0,0.02608746]
[1673067540867,2.30018012,16955.0,16954.0,0.02608746]
[1673067541597,2.30018012,16955.0,16954.0,0.02212391]
[1673067543109,1.93903718,16955.0,16954.0,0.02212391]
[1673067551715,1.93903718,16955.0,16954.0,0.01876573]
[1673067573880,1.93903718,16955.0,16954.0,0.01866983]
[1673067578078,2.53603569,16955.0,16954.0,0.01866983]
[1673067578850,2.14920241,16955.0,16954.0,0.01866983]
[1673067579111,1.93903718,16955.0,16954.0,0.01866983]
[1673067581843,2.52883318,16955.0,16954.0,0.0160408]
[1673067601345,2.52112117,16955.0,16954.0,0.0160408]
[1673067608401,2.52112117,16955.0,16954.0,0.0137144]
[1673067611724,2.82112117,16955.0,16954.0,0.0137144]
[1673067612208,2.7312864,16955.0,16954.0,0.0137144]
[1673067612489,2.52112117,16955.0,16954.0,0.0137144]
[1673067618359,2.52112117,16955.0,16954.0,0.01211047]
[1673067622080,2.52112117,16955.0,16954.0,0.02883504]
[1673067626668,2.52112117,16955.0,16954.0,0.02642278]
[1673067627389,2.7312864,16955.0,16954.0,0.02642278]
[1673067627942,2.52112117,16955.0,16954.0,0.02642278]
[1673067629941,3.11812842,16955.0,16954.0,0.02642278]
[1673067630190,2.7312864,16955.0,16954.0,0.02642278]
[1673067630441,2.52112117,16955.0,16954.0,0.02642278]
[1673067631216,3.11810528,16955.0,16954.0,0.02642278]
[1673067631534,2.7312864,16955.0,16954.0,0.02642278]
[1673067631742,3.32828015,16955.0,16954.0,0.02642278]
[1673067631989,3.32828915,16955.0,16954.0,0.02642278]
[1673067632245,3.11812808,16955.0,16954.0,0.02642278]
[1673067632782,3.1181289,16955.0,16954.0,0.02642278]
[1673067633511,2.7312864,16955.0,16954.0,0.02642278]
[1673067633771,3.11811064,16955.0,16954.0,0.02642278]
[1673067634024,2.52112117,16955.0,16954.0,0.02642278]
[1673067642501,3.1181171,16955.0,16954.0,0.02642278]
[1673067642937,2.7312864,16955.0,16954.0,0.02642278]
[1673067643200,2.52112117,16955.0,16954.0,0.02642278]
[1673067647607,2.7312864,16955.0,16954.0,0.0263588]
[1673067647865,2.52112117,16955.0,16954.0,0.0263588]
[1673067649924,2.7312864,16955.0,16954.0,0.0263588]
[1673067650172,2.52112117,16955.0,16954.0,0.0263588]
[1673067653704,2.7312864,16955.0,16954.0,0.02372293]
[1673067653958,2.52112117,16955.0,16954.0,0.02372293]
[1673067656000,1.92516478,16955.0,16954.0,0.02372293]
[1673067656248,2.53853021,16955.0,16954.0,0.02372293]
[1673067658751,2.50156233,16955.0,16954.0,0.02372293]
[1673067677368,2.71172756,16955.0,16954.0,0.02372293]
[1673067678648,2.71172756,16955.0,16954.0,0.02364993]
[1673067682201,3.01172756,16955.0,16954.0,0.02364993]
[1673067683209,2.71172756,16955.0,16954.0,0.02364993]
[1673067684149,3.01172756,16955.0,16954.0,0.02364993]
[1673067685626,2.71172756,16955.0,16954.0,0.02364993]
[1673067693970,2.71172756,16955.0,16954.0,0.08598487]
[1673067694485,2.71172756,16955.0,16954.0,0.02364993]
[1673067699649,2.71172756,16955.0,16954.0,0.02354907]
[1673067699892,3.30871446,16955.0,16954.0,0.02354907]
[1673067703983,2.55731356,16955.0,16954.0,0.02354907]
[1673067708514,2.05731356,16955.0,16954.0,0.02354907]
[1673067708766,1.46032666,16955.0,16954.0,0.07921342]
[1673067709069,0.57756823,16955.0,16954.0,0.65547641]
[1673067709515,0.72653441,16955.0,16954.0,0.65547641]
[1673067709747,0.57743087,16955.0,16954.0,0.07921342]
[1673067710016,0.57743087,16955.0,16954.0,0.02354907]
[1673067719722,0.57743087,16955.0,16954.0,0.02344465]
[1673067728933,0.047,16955.0,16954.0,0.02344465]
[1673067729212,0.57743087,16955.0,16954.0,0.02344465]
[1673067729476,0.6209177,16955.0,16954.0,0.02344465]
[1673067733751,0.57743087,16955.0,16954.0,0.02344465]
[1673067738633,0.57735411,16955.0,16954.0,0.02344465]
[1673067746870,0.19856457,16955.0,16954.0,0.02344465]
[1673067754194,1.21289725,16955.0,16954.0,0.02344465]
[1673067754696,0.77698958,16955.0,16954.0,0.02344465]
[1673067756939,1.21283693,16955.0,16954.0,0.02344465]
[1673067757189,0.77698958,16955.0,16954.0,0.02344465]
[1673067762448,0.77698958,16955.0,16954.0,0.02336922]
[1673067778524,0.77698958,16955.0,16954.0,0.62962822]
[1673067779747,0.77698958,16955.0,16954.0,0.02336922]
[1673067783262,0.77698958,16955.0,16954.0,0.02325815]
[1673067784032,0.77698958,16955.0,16954.0,0.62951715]
[1673067794385,1.30782511,16955.0,16954.0,0.62951715]
[1673067794585,1.30782511,16955.0,16954.0,0.02325815]
[1673067794870,1.15618378,16955.0,16954.0,0.02325815]
[1673067795845,1.30714811,16955.0,16954.0,0.02325815]
[1673067796343,1.15618378,16955.0,16954.0,0.02325815]
[1673067796610,1.3071542,16955.0,16954.0,0.02325815]
[1673067796861,0.77631867,16955.0,16954.0,0.02325815]
[1673067797371,1.30712844,16955.0,16954.0,0.02325815]
[1673067798110,1.30713133,16955.0,16954.0,0.02325815]
[1673067798851,1.15616091,16955.0,16954.0,0.02325815]
[1673067799064,0.77693956,16955.0,16954.0,0.62951715]
[1673067799563,1.15615771,16955.0,16954.0,0.62951715]
[1673067803811,1.15615771,16955.0,16954.0,0.02325815]
[1673067804313,1.15615771,16955.0,16954.0,0.02314641]
[1673067806336,1.15615771,16955.0,16954.0,0.01672457]
[1673067806827,1.15615771,16955.0,16954.0,0.02654735]
[1673067808525,1.30803669,16955.0,16954.0,0.02654735]
[1673067810305,0.77722723,16955.0,16954.0,0.02654735]
[1673067811292,1.30795516,16955.0,16954.0,0.02654735]
[1673067811548,1.30784026,16955.0,16954.0,0.02654735]
[1673067812260,1.15596128,16955.0,16954.0,0.02654735]
[1673067812484,0.77709197,16955.0,16954.0,0.02654735]
[1673067812750,1.30785889,16955.0,16954.0,0.02654735]
[1673067813321,1.15600027,16955.0,16954.0,0.02654735]
[1673067813547,0.77709922,16955.0,16954.0,0.02654735]
[1673067830148,0.77709922,16955.0,16954.0,0.02672715]
[1673067830413,0.77709922,16955.0,16954.0,0.02654735]
[1673067832224,0.77709922,16955.0,16954.0,0.0264786]
[1673067832508,1.15591172,16955.0,16954.0,0.0264786]
[1673067854381,1.15591172,16955.0,16954.0,0.02637513]
[1673067855382,0.77517056,16955.0,16954.0,0.02637513]
[1673067856428,1.2108609,16955.0,16954.0,0.02637513]
[1673067865381,0.77517056,16955.0,16954.0,0.02637513]
[1673067869372,1.30579797,16955.0,16954.0,0.02637513]
[1673067869650,1.15586076,16955.0,16954.0,0.02637513]
[1673067870159,0.77254055,16955.0,16954.0,0.02637513]
[1673067871154,1.30317119,16955.0,16954.0,0.02637513]
[1673067871374,1.15586399,16955.0,16954.0,0.02637513]
[1673067875536,1.30301959,16955.0,16954.0,0.02637513]
[1673067876248,1.30291219,16955.0,16954.0,0.11406482]
[1673067876498,1.15575659,16955.0,16954.0,0.11406482]
[1673067877005,1.15575659,16955.0,16954.0,0.72032382]
[1673067878751,1.15575659,16955.0,16954.0,0.11406482]
[1673067879247,1.15575659,16955.0,16954.0,0.72032382]
[1673067879496,1.30274953,16955.0,16954.0,0.72032382]
[1673067879745,1.15575659,16955.0,16954.0,0.72032382]
[1673067879996,1.30274817,16955.0,16954.0,0.72032382]
[1673067880251,1.15575659,16955.0,16954.0,0.11406482]
[1673067880512,1.30274868,16955.0,16954.0,0.11406482]
[1673067881018,1.3027396,16955.0,16954.0,0.02637513]
[1673067881283,0.77210719,16955.0,16954.0,0.02637513]
[1673067881536,1.3027467,16955.0,16954.0,0.02637513]
[1673067881822,1.30274569,16955.0,16954.0,0.02637513]
[1673067882309,0.77210719,16955.0,16954.0,0.02637513]
[1673067884784,1.20793427,16955.0,16954.0,0.02637513]
[1673067885040,0.77210719,16955.0,16954.0,0.02637513]
[1673067885297,1.20793427,16955.0,16954.0,0.02637513]
[1673067885560,0.77210719,16955.0,16954.0,0.02637513]
[1673067890124,1.20787018,16955.0,16954.0,0.02637513]
[1673067890861,1.80485708,16955.0,16954.0,0.02637513]
[1673067894103,1.20787018,16955.0,16954.0,0.02637513]
[1673067896126,0.77210719,16955.0,16954.0,0.02637513]
[1673067896638,1.20797526,16955.0,16954.0,0.02637513]
[1673067898650,0.77210719,16955.0,16954.0,0.02637513]
[1673067900578,0.77210719,16955.0,16954.0,0.02631309]
[1673067904857,1.30273849,16955.0,16954.0,0.02631309]
[1673067905136,0.77210719,16955.0,16954.0,0.02631309]
[1673067908233,0.77210719,16955.0,16954.0,0.09044582]
[1673067909740,0.77210719,16955.0,16954.0,0.02631309]
[1673067914295,1.20805652,16955.0,16954.0,0.02631309]
[1673067914538,0.77210719,16955.0,16954.0,0.02631309]
[1673067918635,0.77210719,16955.0,16954.0,0.63257209]
[1673067919649,1.30274293,16955.0,16954.0,0.63257209]
[1673067919893,1.30287313,16955.0,16954.0,0.02631309]
[1673067920251,0.77223739,16955.0,16954.0,0.02631309]
[1673067921120,0.77223739,16955.0,16954.0,0.00982278]
[1673067922039,0.77223739,16955.0,16954.0,0.02749375]
[1673067922534,1.30285098,16955.0,16954.0,0.02749375]
[1673067923016,0.77223739,16955.0,16954.0,0.02739462]
[1673067923970,1.30285233,16955.0,16954.0,0.02739462]
[1673067924206,0.77223739,16955.0,16954.0,0.02739462]
[1673067924686,0.77223739,16955.0,16954.0,0.0916355]
[1673067924930,1.15573893,16955.0,16954.0,0.0916355]
[1673067926873,1.15573893,16955.0,16954.0,0.6978945]
[1673067927327,1.15573893,16955.0,16954.0,0.63365362]
[1673067929271,1.15573893,16955.0,16954.0,0.02739462]
[1673067931935,1.15562951,16955.0,16954.0,0.02739462]
[1673067932879,1.15562951,16955.0,16953.0,1.69198471]
[1673067933133,1.15562951,16955.0,16953.0,1.20487621]
[1673067933361,1.15562951,16955.0,16954.0,0.606259]
[1673067933646,1.15562951,16955.0,16953.0,1.69198471]
[1673067933915,1.15562951,16955.0,16953.0,1.20487621]
[1673067934129,1.10903799,16955.0,16954.0,0.606259]
[1673067934362,1.15603799,16955.0,16954.0,0.606259]
[1673067935063,1.10903799,16955.0,16953.0,1.69198471]
[1673067935300,1.15603799,16955.0,16954.0,0.001]
[1673067935539,1.15603799,16955.0,16954.0,0.607259]
[1673067938438,1.15603799,16955.0,16954.0,0.001]
[1673067946386,1.15603799,16955.0,16954.0,0.607259]
[1673067947554,1.15603799,16955.0,16954.0,0.001]
[1673067948554,1.15603799,16955.0,16954.0,0.607259]
[1673067949078,1.15603799,16955.0,16954.0,0.001]
[1673067953890,1.15603799,16955.0,16954.0,0.00091725]
[1673067954992,0.5,16954.0,16953.0,1.79063546]
[1673067955790,1.60903799,16955.0,16953.0,1.79063546]
[1673067956485,0.007,16954.0,16953.0,1.79663546]
[1673067957247,1.60903799,16955.0,16953.0,1.79063546]
[1673067958278,0.007,16954.0,16953.0,1.79663546]
[1673067958536,2.0455003,16955.0,16953.0,1.79063546]
[1673067958797,1.65603799,16955.0,16953.0,1.79163546]
[1673067959057,1.60903799,16955.0,16953.0,1.79063546]
[1673067959269,0.007,16954.0,16953.0,1.79663546]
[1673067959774,0.007,16954.0,16953.0,2.40289446]
[1673067960023,0.007,16954.0,16953.0,2.39689446]
[1673067960249,1.10903799,16955.0,16953.0,2.39789446]
[1673067960542,1.10903799,16955.0,16954.0,0.606259]
[1673067961257,1.10903799,16955.0,16953.0,1.79063546]
[1673067961523,1.15603799,16955.0,16953.0,1.79163546]
[1673067961738,1.10903799,16955.0,16953.0,1.79063546]
[1673067961963,1.15603799,16955.0,16954.0,0.001]
[1673067962475,1.15603799,16955.0,16954.0,0.607259]
[1673067962979,1.10897272,16955.0,16954.0,0.606259]
[1673067963196,1.15597272,16955.0,16954.0,0.606259]
[1673067963425,1.10897272,16955.0,16954.0,0.606259]
[1673067963649,1.15597272,16955.0,16954.0,0.001]
[1673067964938,1.15597272,16955.0,16954.0,0.607259]
[1673067968022,1.15597272,16955.0,16954.0,0.001]
[1673067979167,1.59257544,16955.0,16954.0,0.001]
[1673067979419,1.20481679,16955.0,16954.0,0.001]
[1673067981979,0.76821407,16955.0,16954.0,0.001]
[1673067982234,1.2989295,16955.0,16954.0,0.001]
[1673067982753,1.15607517,16955.0,16954.0,0.001]
[1673067983510,1.15607517,16955.0,16954.0,0.00092991]
[1673067984308,1.59294084,16955.0,16954.0,0.00092991]
[1673067984566,1.73586431,16955.0,16954.0,0.00092991]
[1673067984809,1.59289356,16955.0,16954.0,0.00092991]
[1673067986113,1.20514206,16955.0,16954.0,0.00092991]
[1673067994033,2.23565995,16955.0,16954.0,0.00092991]
[1673067995199,2.0927433,16955.0,16954.0,0.00092991]
[1673067997437,2.09266683,16955.0,16954.0,0.00092991]
[1673067997923,0.5,16954.0,16953.0,0.60686137]
[1673067999210,0.507,16954.0,16953.0,0.61186137]
[1673068000328,0.007,16954.0,16953.0,0.61186137]
[1673068000505,0.007,16954.0,16953.0,0.61207605]
[1673068000758,0.007,16954.0,16953.0,0.61186137]
[1673068008621,0.007,16954.0,16953.0,0.61207605]
[1673068008861,0.53751789,16954.0,16953.0,0.61186137]
[1673068018768,1.03751789,16954.0,16953.0,0.61175957]
[1673068022631,0.53751789,16954.0,16953.0,0.61175957]
[1673068028231,0.53751789,16954.0,16953.0,0.01560886]
[1673068036710,0.97403458,16954.0,16953.0,0.01560886]
[1673068036962,0.97417767,16954.0,16953.0,0.01560886]
[1673068037227,0.44351669,16954.0,16953.0,0.01560886]
[1673068037707,0.52527912,16954.0,16953.0,0.01560886]
[1673068038412,0.52532304,16954.0,16953.0,0.01560886]
[1673068041198,1.02532304,16954.0,16953.0,0.01554052]
[1673068062840,1.02532304,16954.0,16953.0,0.0154619]
[1673068063644,1.02520511,16954.0,16953.0,0.0154619]
[1673068070766,1.62219201,16954.0,16953.0,0.0154619]
[1673068072550,2.18079508,16954.0,16953.0,0.0154619]
[1673068072795,1.58380818,16954.0,16953.0,0.0154619]
[1673068073043,2.18079508,16954.0,16953.0,0.0154619]
[1673068073259,1.58380818,16954.0,16953.0,0.0154619]
[1673068073519,2.18079508,16954.0,16953.0,0.0154619]
[1673068083022,1.58380818,16954.0,16953.0,0.0154619]
[1673068083874,2.18079508,16954.0,16953.0,0.0154619]
[1673068088585,2.18079508,16954.0,16953.0,0.01539015]
[1673068104530,2.09937508,16954.0,16953.0,0.01539015]
[1673068104795,0.56548514,16954.0,16953.0,0.01539015]
[1673068105105,0.56548514,16954.0,16953.0,0.07566707]
[1673068105609,0.56548514,16954.0,16953.0,0.573401]
[1673068105867,0.56548514,16954.0,16953.0,1.17966]
[1673068105868,0.53767353,16954.0,16953.0,1.17966]
[1673068107147,0.00688207,16954.0,16953.0,1.17966]
[1673068107644,0.44910192,16954.0,16953.0,1.17966]
[1673068108426,0.80274768,16954.0,16953.0,2.2566345]
[1673068108763,0.62576792,16954.0,16953.0,2.532892]
[1673068109157,0.62576792,16954.0,16953.0,3.0200005]
[1673068109436,1.06798777,16954.0,16953.0,3.0200005]
[1673068109683,0.80274768,16954.0,16953.0,3.0200005]
[1673068109946,1.06797769,16954.0,16953.0,3.0200005]
[1673068110194,0.62575784,16954.0,16953.0,3.0200005]
[1673068111457,0.57575784,16954.0,16953.0,3.0200005]
[1673068112233,0.44191546,16954.0,16953.0,3.0200005]
[1673068120370,0.17668545,16954.0,16953.0,3.0200005]
[1673068120614,0.44191546,16954.0,16953.0,3.0200005]
[1673068120856,0.17668545,16954.0,16953.0,3.0200005]
[1673068121360,0.44191546,16954.0,16953.0,3.0200005]
[1673068122520,0.17668545,16954.0,16953.0,3.0200005]
[1673068128922,0.44191546,16955.0,16953.0,3.0200005]
[1673068129181,0.44191546,16955.0,16954.0,0.606259]
[1673068129438,0.44191546,16955.0,16954.0,1.785921]
[1673068130957,0.48491546,16955.0,16954.0,1.785921]
[1673068131222,0.44191546,16955.0,16954.0,1.785921]
[1673068131470,0.44991546,16955.0,16954.0,1.795921]
[1673068132966,0.80311295,16955.0,16954.0,1.795921]
[1673068133223,0.44991546,16955.0,16954.0,1.795921]
[1673068135993,0.80311295,16955.0,16954.0,1.795921]
[1673068136277,0.62640048,16955.0,16954.0,1.795921]
[1673068136561,0.62640048,16955.0,16954.0,1.79696892]
[1673068139658,0.62640048,16955.0,16954.0,1.189662]
[1673068140203,0.84686769,16955.0,16954.0,1.189662]
[1673068143003,1.34686769,16955.0,16954.0,1.18959386]
[1673068144437,0.40464784,16955.0,16954.0,1.18959386]
[1673068148455,0.9354393,16955.0,16954.0,1.18959386]
[1673068150433,0.40464784,16955.0,16954.0,1.18959386]
[1673068150940,0.9354393,16955.0,16954.0,1.18959386]
[1673068153112,0.40464784,16955.0,16954.0,1.18959386]
[1673068153337,0.9354393,16955.0,16954.0,1.18959386]
[1673068153582,0.9354393,16955.0,16954.0,0.59976286]
[1673068157677,1.49877082,16955.0,16954.0,0.59976286]
[1673068157917,1.49877082,16955.0,16954.0,0.01]
[1673068159178,1.45529345,16955.0,16954.0,0.01]
[1673068162505,1.49883538,16955.0,16954.0,0.01]
[1673068163960,1.49883538,16955.0,16954.0,0.0099349]
[1673068164216,2.48372298,16955.0,16954.0,0.0099349]
[1673068168081,0.5,16954.0,16953.0,1.7112909]
[1673068168329,0.98581842,16954.0,16953.0,1.7112909]
[1673068168595,0.48581842,16954.0,16953.0,1.7112909]
[1673068169330,0.49981842,16954.0,16953.0,1.7132909]
[1673068176281,0.05754193,16954.0,16953.0,0.591839]
[1673068176528,0.05754193,16954.0,16953.0,0.002]
[1673068178065,0.05743751,16954.0,16953.0,0.002]
[1673068180467,0.05743751,16954.0,16953.0,0.608259]
[1673068181720,0.05743751,16954.0,16953.0,0.002]
[1673068186781,0.13143751,16954.0,16953.0,0.002]
[1673068187033,0.66222897,16954.0,16953.0,0.002]
[1673068187548,0.13143751,16954.0,16953.0,0.002]
[1673068188037,0.05743751,16954.0,16953.0,0.002]
[1673068189816,0.05743751,16954.0,16952.0,1.14775174]
[1673068189817,0.04343751,16954.0,16952.0,1.14775174]
[1673068190071,0.79624184,16953.0,16952.0,1.14775174]
[1673068192018,0.81024184,16953.0,16952.0,1.14975174]
[1673068192757,0.81024184,16953.0,16952.0,1.73965174]
[1673068193255,0.85378705,16953.0,16952.0,1.73965174]
[1673068199034,0.49990179,16953.0,16952.0,1.73965174]
[1673068199531,0.85380957,16953.0,16952.0,1.73965174]
[1673068199818,0.85380828,16953.0,16952.0,1.73965174]
[1673068201018,0.49990179,16953.0,16952.0,1.73965174]
[1673068201747,0.85380642,16953.0,16952.0,1.73965174]
[1673068202254,0.83980642,16953.0,16952.0,1.73765174]
[1673068202506,0.83980642,16953.0,16952.0,1.73753921]
[1673068203005,0.85380642,16953.0,16952.0,1.73953921]
[1673068204011,0.85380642,16953.0,16952.0,1.73753921]
[1673068205803,0.49990179,16953.0,16952.0,1.73753921]
[1673068207474,0.85379048,16953.0,16952.0,1.73753921]
[1673068219423,0.49990179,16953.0,16952.0,1.73753921]
[1673068220662,0.85381024,16953.0,16952.0,1.73753921]
[1673068222219,0.49990179,16953.0,16952.0,1.73753921]
[1673068222450,0.85382524,16953.0,16952.0,1.73753921]
[1673068223176,0.49990179,16953.0,16952.0,1.73753921]
[1673068225179,0.85383664,16953.0,16952.0,1.73753921]
[1673068225616,0.85385053,16953.0,16952.0,1.73753921]
[1673068229187,0.63341588,16953.0,16952.0,1.73753921]
[1673068229446,0.63341588,16953.0,16952.0,2.82863456]
[1673068232802,0.63341588,16953.0,16952.0,2.82858344]
[1673068233050,0.65945285,16953.0,16952.0,2.34379821]
[1673068234283,0.836386,16953.0,16952.0,2.34379821]
[1673068234540,0.65945285,16953.0,16952.0,2.82863464]
[1673068235058,0.83637536,16953.0,16952.0,2.82863464]
[1673068235395,0.48242662,16953.0,16952.0,2.34379821]
[1673068236055,0.83637536,16953.0,16952.0,2.34379821]
[1673068236298,0.83637536,16953.0,16952.0,1.73753921]
[1673068236299,0.65945285,16953.0,16952.0,1.73753921]
[1673068239804,0.83636217,16953.0,16952.0,1.73753921]
[1673068240061,0.83636218,16953.0,16952.0,1.73753921]
[1673068240309,0.65945285,16953.0,16952.0,1.73753921]
[1673068248363,0.6593389,16953.0,16952.0,1.73753921]
[1673068249825,1.10169548,16953.0,16952.0,1.73753921]
[1673068250071,0.6593389,16953.0,16952.0,1.73753921]
[1673068250336,1.10169548,16953.0,16952.0,1.73753921]
[1673068252080,0.87976607,16953.0,16952.0,2.43753921]
[1673068253334,0.87976607,16953.0,16952.0,1.84763921]
[1673068253548,0.87976607,16953.0,16952.0,1.14763921]
[1673068253549,0.52581733,16953.0,16952.0,1.14763921]
[1673068254825,0.87963122,16953.0,16952.0,1.14763921]
[1673068259582,0.87963122,16953.0,16952.0,2.06050344]
[1673068260378,0.83609349,16953.0,16952.0,2.06050344]
[1673068260623,1.10144477,16953.0,16952.0,2.66676244]
[1673068260869,0.65908819,16953.0,16952.0,2.66676244]
[1673068261380,0.65908819,16953.0,16952.0,3.36676244]
[1673068263749,0.65908819,16953.0,16952.0,3.36781048]
[1673068264547,0.83609349,16953.0,16952.0,3.36676244]
[1673068266475,1.10145551,16953.0,16952.0,3.36676244]
[1673068266989,0.83609349,16953.0,16952.0,3.36676244]
[1673068267507,1.10145389,16953.0,16952.0,3.36676244]
[1673068267761,0.83609349,16953.0,16952.0,3.36676244]
[1673068268017,1.10145469,16953.0,16952.0,3.36676244]
[1673068269043,0.83609349,16953.0,16952.0,3.36676244]
[1673068269651,0.83609349,16953.0,16952.0,3.95666244]
[1673068272234,0.83609349,16953.0,16952.0,3.25656231]
[1673068272482,1.10146235,16953.0,16952.0,3.25656231]
[1673068272708,1.10146261,16953.0,16952.0,3.25656231]
[1673068273215,0.83609349,16953.0,16952.0,3.95656231]
[1673068275470,1.10147754,16953.0,16952.0,3.95656231]
[1673068275770,0.83609349,16953.0,16952.0,3.95656231]
[1673068276274,1.10147754,16953.0,16952.0,3.95656231]
[1673068276769,1.10147754,16953.0,16952.0,3.25656231]
[1673068277512,1.10147754,16953.0,16952.0,2.65030331]
[1673068278280,0.83609349,16953.0,16952.0,2.65030331]
[1673068278531,1.10148766,16953.0,16952.0,2.65030331]
[1673068278784,0.65913108,16953.0,16952.0,2.65030331]
[1673068279830,1.10148766,16953.0,16952.0,2.65030331]
[1673068281845,0.83609349,16953.0,16952.0,2.65030331]
[1673068282097,0.83609349,16953.0,16952.0,3.35030331]
[1673068282341,0.83609349,16953.0,16952.0,3.95656231]
[1673068282844,0.87963687,16953.0,16952.0,3.95656231]
[1673068283349,0.83609349,16953.0,16952.0,3.95656231]
[1673068283598,0.87963675,16953.0,16952.0,3.95656231]
[1673068283839,0.83609349,16953.0,16952.0,3.95656231]
[1673068285130,0.87963768,16953.0,16952.0,3.95656231]
[1673068285626,0.87963768,16953.0,16952.0,3.25656231]
[1673068285882,0.87963768,16953.0,16952.0,2.65030331]
[1673068287144,0.87963987,16953.0,16952.0,2.65030331]
[1673068287392,0.83609349,16953.0,16952.0,2.65030331]
[1673068288146,0.87963995,16953.0,16952.0,2.65030331]
[1673068288399,0.87963988,16953.0,16952.0,2.65030331]
[1673068288917,0.87964036,16953.0,16952.0,2.65030331]
[1673068289397,0.83609349,16953.0,16952.0,2.65030331]
[1673068289893,0.87964041,16953.0,16952.0,2.65030331]
[1673068290135,0.87964041,16953.0,16952.0,2.64030331]
[1673068297633,0.83609349,16953.0,16952.0,2.64030331]
[1673068297888,0.87964507,16953.0,16952.0,2.64030331]
[1673068298137,0.83609349,16953.0,16952.0,2.64030331]
[1673068299165,0.83609349,16953.0,16952.0,3.24656231]
[1673068303194,0.87964643,16953.0,16952.0,3.24656231]
[1673068303460,0.87964643,16953.0,16952.0,3.94656231]
[1673068304941,0.83609349,16953.0,16952.0,3.94656231]
[1673068305158,0.87964683,16953.0,16952.0,3.24656231]